[Event "World Senior chT-65 2019"]
[Site "Rhodes"]
[Date "2019.04.22"]
[Round "7.34"]
[White "Staechelin, Ruedi"]
[Black "Uddenfeldt, Dan"]
[Result "0-1"]
[ECO "B07"]
[WhiteElo "2053"]
[BlackElo "2339"]
[Annotator "NA"]
[PlyCount "96"]
[EventDate "2019.04.16"]
[EventType "team-tourn"]
[EventCountry "GRE"]
[SourceTitle "playchess.com"]
[Source "ChessBase"]
[SourceQuality "1"]
[WhiteTeam "Switzerland"]
[BlackTeam "Sweden"]
[WhiteTeamCountry "SUI"]
[BlackTeamCountry "SWE"]
[TimeControl "40/5400+30:1800+30"]

1. e4 {[%emt 0:00:00]} d6 {[%emt 0:00:12]} 2. d4 {[%emt 0:00:00]} g6 {[%emt 0:00:15]} 3. Nc3 {[%emt 0:00:24]} Bg7 {[%emt 0:00:39]} 4. Be3 {[%emt 0:00:49]} Nf6 {[%emt 0:02:17]} 5. h3 {[%emt 0:01:26]} a6 {[%emt 0:01:49]} 6. f4 {[%emt 0:05:12]} O-O {[%emt 0:03:51]} 7. Be2 {[%emt 0:02:33]} Nbd7 {[%emt 0:04:51]} 8. e5 {[%emt 0:02:12]} Ne8 {[%emt 0:00:51]} 9. Ne4 {[%emt 0:04:23]} (9. Nf3 $14) 9... c5 {[%emt 0:04:12]} 10. c3 {[%emt 0:02:39]} Nc7 {[%emt 0:09:38]} 11. Qd2 {[%emt 0:07:34]} cxd4 {[%emt 0:04:58]} 12. cxd4 $11 {[%emt 0:01:06]} Nd5 {[%emt 0:00:30]} 13. Bf2 {[%emt 0:02:51]} Bh6 {[%emt 0:06:25]} 14. g3 {[%emt 0:14:37]} dxe5 {[%emt 0:01:09]} 15. dxe5 {[%emt 0:00:25]} Nxe5 {[%emt 0:00:49]} 16. Rd1 {[%emt 0:00:55]} Bf5 {[%emt 0:08:03]} 17. Nc5 {[%emt 0:08:56]} e6 {[%emt 0:01:21]} 18. Nf3 {[%emt 0:03:11]} Nc6 {[%emt 0:08:59]} 19. Nh4 {[%emt 0:05:22]} b6 {[%emt 0:03:00]} 20. Nxf5 {[%emt 0:00:45]} gxf5 {[%emt 0:00:36]} 21. Nb3 {[%emt 0:03:17]} Qf6 {[%emt 0:03:31]} 22. Nd4 {[%emt 0:03:44]} Nce7 {[%emt 0:00:27]} 23. Bf3 {[%emt 0:03:24]} e5 {[%emt 0:03:28]} 24. Bxd5 {[%emt 0:02:50]} Nxd5 {[%emt 0:00:59]} 25. Ne2 {[%emt 0:09:19]} Rfd8 {[%emt 0:03:08]} 26. Qc2 {[%emt 0:02:56]} exf4 {[%emt 0:03:32]} 27. gxf4 {[%emt 0:02:31]} Nxf4 {[%emt 0:00:51]} 28. Nxf4 {[%emt 0:00:41]} Bxf4 {[%emt 0:01:08]} 29. O-O {[%emt 0:01:51]} Kh8 {[%emt 0:01:52]} 30. Rxd8+ {[%emt 0:04:45]} Rxd8 {[%emt 0:00:14]} 31. Rd1 {[%emt 0:01:18]} Rg8+ {[%emt 0:01:49]} 32. Kf1 {[%emt 0:01:04]} Be5 {[%emt 0:01:42]} 33. b3 {[%emt 0:00:50]} Qe6 {[%emt 0:01:34]} 34. Qe2 {[%emt 0:00:48]} f6 {[%emt 0:00:49]} 35. Qf3 {[%emt 0:00:34]} f4 {[%emt 0:02:14]} 36. Re1 {[%emt 0:01:39]} b5 {[%emt 0:00:33]} 37. Rd1 {[%emt 0:00:07]} Qf5 {[%emt 0:00:51]} 38. Re1 {[%emt 0:00:38]} h5 {[%emt 0:01:51]} 39. Rd1 {[%emt 0:00:41]} Rc8 {[%emt 0:01:36]} 40. Qd3 {[%emt 0:00:00]} Qxd3+ {[%emt 0:00:00]} 41. Rxd3 {[%emt 0:00:57]} Kg7 {[%emt 0:02:35]} 42. Kg2 {[%emt 0:01:00]} Kg6 {[%emt 0:00:24]} 43. Kf3 {[%emt 0:00:18]} Kf5 {[%emt 0:00:09]} 44. a4 {[%emt 0:06:45]} Rc2 {[%emt 0:01:45]} 45. axb5 {[%emt 0:00:53]} axb5 {[%emt 0:00:01]} 46. Bg1 {[%emt 0:00:27]} Rc1 {[%emt 0:01:37]} 47. Bf2 {[%emt 0:00:49]} Rh1 {[%emt 0:01:13]} 48. Kg2 {[%emt 0:00:44]} Ke4 {[%emt 0:00:10]} 0-1

[Event "World Senior chT-65 2019"]
[Site "Rhodes"]
[Date "2019.04.22"]
[Round "7.35"]
[White "Hammar, Bengt"]
[Black "Kradolfer, Georg"]
[Result "1-0"]
[ECO "B18"]
[WhiteElo "2206"]
[BlackElo "2048"]
[Annotator "NA"]
[PlyCount "125"]
[EventDate "2019.04.16"]
[EventType "team-tourn"]
[EventCountry "GRE"]
[SourceTitle "playchess.com"]
[Source "ChessBase"]
[SourceQuality "1"]
[WhiteTeam "Sweden"]
[BlackTeam "Switzerland"]
[WhiteTeamCountry "SWE"]
[BlackTeamCountry "SUI"]
[TimeControl "40/5400+30:1800+30"]

1. e4 {[%emt 0:00:00]} c6 {[%emt 0:00:00]} 2. d4 {[%emt 0:01:23]} d5 {[%emt 0:00:01]} 3. Nc3 {[%emt 0:00:36]} dxe4 {[%emt 0:00:08]} 4. Nxe4 {[%emt 0:00:08]} Bf5 {[%emt 0:00:17]} 5. Ng3 {[%emt 0:00:11]} Bg6 {[%emt 0:00:07]} 6. N1e2 {[%emt 0:00:44]} Nf6 {[%emt 0:04:03]} 7. h4 {[%emt 0:03:34]} h6 {[%emt 0:11:00]} 8. Nf4 {[%emt 0:00:44]} Bh7 {[%emt 0:01:19]} 9. c3 {[%emt 0:04:22]} e6 {[%emt 0:02:12]} 10. Bc4 {[%emt 0:00:26]} Bd6 {[%emt 0:09:32]} 11. Ngh5 {[%emt 0:01:47]} O-O {[%emt 0:10:05]} 12. O-O {[%emt 0:09:18]} Nxh5 {[%emt 0:10:11]} 13. Qxh5 {[%emt 0:00:26]} Qf6 {[%emt 0:01:01]} 14. g3 {[%emt 0:01:21]} Nd7 {[%emt 0:01:23]} 15. Bd3 {[%emt 0:20:04]} Bxf4 {[%emt 0:17:27]} 16. Bxh7+ {[%emt 0:00:27]} Kxh7 {[%emt 0:00:03]} 17. Bxf4 {[%emt 0:00:12]} Qg6 {[%emt 0:02:13]} 18. Qe2 {[%emt 0:06:27]} Nf6 {[%emt 0:03:28]} 19. Rad1 {[%emt 0:02:55]} Rad8 {[%emt 0:05:00]} 20. Bc1 {[%emt 0:05:39]} Rd5 {[%emt 0:03:00]} 21. Qf3 {[%emt 0:04:46]} Rfd8 {[%emt 0:02:25]} 22. Rfe1 {[%emt 0:01:38]} Qg4 {[%emt 0:02:11]} 23. Qxg4 {[%emt 0:08:34]} Nxg4 {[%emt 0:00:02]} 24. f3 {[%emt 0:00:12]} Nf6 {[%emt 0:03:51]} 25. Be3 {[%emt 0:00:53]} b5 {[%emt 0:00:57]} 26. Ra1 {[%emt 0:00:54]} R5d7 {[%emt 0:00:42]} 27. a4 {[%emt 0:00:48]} Nd5 {[%emt 0:00:57]} 28. Bd2 {[%emt 0:00:52]} Nb6 {[%emt 0:02:06]} 29. axb5 {[%emt 0:00:50]} cxb5 {[%emt 0:00:35]} 30. Bc1 {[%emt 0:05:07]} Na4 {[%emt 0:01:22]} 31. Kf2 {[%emt 0:01:48]} Kg6 {[%emt 0:02:04]} 32. Re3 {[%emt 0:04:00]} Nb6 {[%emt 0:00:42]} 33. Re5 {[%emt 0:01:14]} Nd5 {[%emt 0:00:42]} 34. h5+ {[%emt 0:01:38]} Kf6 {[%emt 0:00:42]} 35. g4 {[%emt 0:00:35]} Ke7 {[%emt 0:00:18]} 36. Bd2 {[%emt 0:03:47]} Rc8 {[%emt 0:00:53]} 37. Ra5 {[%emt 0:01:39]} b4 {[%emt 0:02:22]} 38. Rc5 {[%emt 0:02:28]} Rxc5 {[%emt 0:00:58]} 39. dxc5 {[%emt 0:00:01]} bxc3 {[%emt 0:02:25]} 40. bxc3 {[%emt 0:00:00]} f6 {[%emt 0:00:00]} 41. Re2 {[%emt 0:00:49]} Rb7 {[%emt 0:06:15]} 42. Re4 {[%emt 0:04:32]} Rb2 {[%emt 0:01:45]} 43. Ke1 {[%emt 0:00:17]} Ra2 {[%emt 0:10:45]} 44. c4 {[%emt 0:01:35]} Nc7 {[%emt 0:00:23]} 45. Rd4 {[%emt 0:01:51]} e5 {[%emt 0:00:51]} 46. Re4 {[%emt 0:02:36]} Kd7 {[%emt 0:02:02]} 47. f4 {[%emt 0:00:24]} exf4 {[%emt 0:01:35]} 48. Bxf4 {[%emt 0:00:09]} Ne6 {[%emt 0:00:26]} 49. c6+ {[%emt 0:00:16]} Kxc6 {[%emt 0:02:13]} 50. Rxe6+ {[%emt 0:00:08]} Kc5 {[%emt 0:00:07]} 51. Re7 {[%emt 0:00:33]} Kxc4 {[%emt 0:01:53]} 52. Rxg7 {[%emt 0:00:15]} a5 {[%emt 0:05:02]} 53. Bxh6 {[%emt 0:00:28]} a4 {[%emt 0:00:26]} 54. Bd2 {[%emt 0:00:38]} Kd3 {[%emt 0:00:52]} 55. Rd7+ {[%emt 0:00:11]} Ke4 {[%emt 0:00:17]} 56. Ke2 {[%emt 0:01:16]} Ra1 {[%emt 0:01:42]} 57. Re7+ {[%emt 0:01:11]} Kd5 {[%emt 0:00:15]} 58. Ra7 {[%emt 0:00:39]} a3 {[%emt 0:02:06]} 59. Bc3 {[%emt 0:02:53]} Ra2+ {[%emt 0:00:26]} 60. Kf3 {[%emt 0:01:35]} Ke6 {[%emt 0:00:41]} 61. Ra6+ {[%emt 0:00:38]} Kf7 {[%emt 0:00:16]} 62. Rxf6+ {[%emt 0:00:08]} Kg8 {[%emt 0:00:14]} 63. Ra6 {[%emt 0:00:27]} 1-0

[Event "World Senior chT-65 2019"]
[Site "Rhodes"]
[Date "2019.04.22"]
[Round "7.36"]
[White "Illi, Hans-Joerg"]
[Black "Hedin, Gunnar"]
[Result "1-0"]
[ECO "C01"]
[WhiteElo "2002"]
[BlackElo "2195"]
[Annotator "NA"]
[PlyCount "129"]
[EventDate "2019.04.16"]
[EventType "team-tourn"]
[EventCountry "GRE"]
[SourceTitle "playchess.com"]
[Source "ChessBase"]
[SourceQuality "1"]
[WhiteTeam "Switzerland"]
[BlackTeam "Sweden"]
[WhiteTeamCountry "SUI"]
[BlackTeamCountry "SWE"]
[TimeControl "40/5400+30:1800+30"]

1. d4 {[%emt 0:00:20]} e6 {[%emt 0:00:00]} 2. e4 {[%emt 0:02:28]} d5 {[%emt 0:00:03]} 3. exd5 {[%emt 0:01:01]} exd5 {[%emt 0:00:03]} 4. Nf3 {[%emt 0:00:53]} Nf6 {[%emt 0:01:09]} 5. Bd3 {[%emt 0:01:43]} Be7 {[%emt 0:05:04]} 6. O-O {[%emt 0:01:31]} Bg4 {[%emt 0:03:44]} 7. h3 {[%emt 0:04:57]} Bh5 {[%emt 0:00:42]} 8. Re1 {[%emt 0:05:17]} O-O $14 {[%emt 0:05:33]} 9. c3 {[%emt 0:09:42]} Nc6 {[%emt 0:20:57]} 10. Bf4 {[%emt 0:05:09]} Bd6 {[%emt 0:09:42]} 11. Bxd6 {[%emt 0:03:17]} Qxd6 {[%emt 0:02:12]} 12. Nbd2 {[%emt 0:00:50]} Rfe8 {[%emt 0:04:45]} 13. Qc2 {[%emt 0:01:11]} Bg6 {[%emt 0:01:42]} 14. Bxg6 {[%emt 0:19:08]} hxg6 {[%emt 0:01:40]} 15. Kf1 {[%emt 0:05:22]} a5 {[%emt 0:04:45]} 16. a4 {[%emt 0:01:14]} b6 {[%emt 0:01:12]} 17. Rad1 {[%emt 0:02:35]} Kf8 {[%emt 0:09:01]} 18. Qd3 {[%emt 0:02:52]} Rxe1+ {[%emt 0:00:44]} 19. Rxe1 {[%emt 0:05:40]} Re8 {[%emt 0:01:37]} 20. Rxe8+ {[%emt 0:00:51]} Kxe8 {[%emt 0:00:45]} 21. Qe3+ {[%emt 0:02:20]} Qe7 {[%emt 0:04:15]} 22. Ke2 {[%emt 0:02:05]} Nd7 {[%emt 0:03:49]} 23. Ne1 {[%emt 0:03:05]} Qxe3+ {[%emt 0:01:48]} 24. Kxe3 {[%emt 0:00:40]} Ke7 {[%emt 0:00:41]} 25. Nd3 {[%emt 0:00:32]} f6 {[%emt 0:02:09]} 26. Nf4 {[%emt 0:01:22]} Kd6 {[%emt 0:02:24]} 27. Nxg6 {[%emt 0:00:27]} Nd8 {[%emt 0:00:15]} 28. h4 {[%emt 0:02:18]} Nf7 {[%emt 0:00:33]} 29. g4 {[%emt 0:00:59]} c6 {[%emt 0:02:05]} 30. Nf1 {[%emt 0:01:00]} Ke6 {[%emt 0:00:41]} 31. Ng3 {[%emt 0:00:49]} Nd6 {[%emt 0:00:13]} 32. Nf4+ {[%emt 0:03:13]} Kf7 {[%emt 0:00:34]} 33. Kd3 {[%emt 0:02:17]} g5 {[%emt 0:02:23]} 34. Ng2 {[%emt 0:00:13]} gxh4 {[%emt 0:00:30]} 35. Nxh4 {[%emt 0:00:03]} c5 {[%emt 0:02:14]} 36. Nhf5 {[%emt 0:00:29]} Ke6 {[%emt 0:02:00]} 37. Nxd6 {[%emt 0:00:41]} Kxd6 {[%emt 0:00:15]} 38. Nf5+ {[%emt 0:02:59]} Ke6 {[%emt 0:01:05]} 39. Ne3 {[%emt 0:02:33]} cxd4 {[%emt 0:03:07]} 40. cxd4 {[%emt 0:00:00]} Nb8 {[%emt 0:00:00]} 41. f4 {[%emt 0:07:37]} Nc6 {[%emt 0:02:06]} 42. Nc2 {[%emt 0:01:01]} Ne7 {[%emt 0:05:47]} 43. b4 {[%emt 0:02:34]} axb4 {[%emt 0:07:20]} 44. Nxb4 {[%emt 0:00:13]} Ng8 {[%emt 0:12:23]} 45. Ke3 {[%emt 0:00:48]} Nh6 {[%emt 0:00:14]} 46. Kf3 {[%emt 0:01:21]} Nf7 {[%emt 0:01:32]} 47. Kg3 {[%emt 0:00:28]} Nd8 {[%emt 0:04:55]} 48. Kh4 {[%emt 0:00:43]} Nb7 {[%emt 0:00:33]} 49. Kh5 {[%emt 0:01:22]} Nd6 {[%emt 0:01:18]} 50. f5+ {[%emt 0:00:43]} Nxf5 {[%emt 0:00:41]} 51. gxf5+ {[%emt 0:00:21]} Kxf5 {[%emt 0:00:03]} 52. Nxd5 {[%emt 0:01:15]} Ke4 {[%emt 0:00:06]} 53. Nxb6 {[%emt 0:00:24]} Kxd4 {[%emt 0:00:02]} 54. a5 {[%emt 0:00:27]} Kc5 {[%emt 0:00:04]} 55. Nc4 {[%emt 0:00:14]} Kb5 {[%emt 0:01:38]} 56. Kg4 {[%emt 0:00:39]} Ka6 {[%emt 0:00:05]} 57. Kf5 {[%emt 0:00:11]} Ka7 {[%emt 0:00:09]} 58. Kxf6 {[%emt 0:00:11]} Kb7 {[%emt 0:00:23]} 59. Ke6 {[%emt 0:00:17]} Ka7 {[%emt 0:00:14]} 60. Kd6 {[%emt 0:00:12]} Kb7 {[%emt 0:00:43]} 61. Kc5 {[%emt 0:01:52]} Ka6 {[%emt 0:00:31]} 62. Kb4 {[%emt 0:00:20]} Ka7 {[%emt 0:00:10]} 63. Kb5 {[%emt 0:00:18]} Kb7 {[%emt 0:00:14]} 64. Nd6+ {[%emt 0:01:43]} Ka7 {[%emt 0:00:27]} 65. a6 {[%emt 0:01:01]} 1-0

[Event "World Senior chT-65 2019"]
[Site "Rhodes"]
[Date "2019.04.22"]
[Round "7.37"]
[White "Jones, Iolo C"]
[Black "Scrimgour, Alan"]
[Result "1/2-1/2"]
[ECO "E15"]
[WhiteElo "2187"]
[BlackElo "2087"]
[Annotator "NA"]
[PlyCount "125"]
[EventDate "2019.04.16"]
[EventType "team-tourn"]
[EventCountry "GRE"]
[SourceTitle "playchess.com"]
[Source "ChessBase"]
[SourceQuality "1"]
[WhiteTeam "Wales"]
[BlackTeam "Scotland"]
[WhiteTeamCountry "WLS"]
[BlackTeamCountry "SCO"]
[TimeControl "40/5400+30:1800+30"]

1. d4 {[%emt 0:00:00]} Nf6 {[%emt 0:00:00]} 2. Nf3 {[%emt 0:00:19]} e6 {[%emt 0:00:07]} 3. c4 {[%emt 0:00:43]} b6 {[%emt 0:00:41]} 4. g3 {[%emt 0:00:40]} Bb4+ {[%emt 0:02:49]} 5. Nbd2 {[%emt 0:01:22]} Ba6 {[%emt 0:01:34]} 6. Qc2 {[%emt 0:01:53]} O-O {[%emt 0:04:29]} 7. Bg2 {[%emt 0:01:19]} Bb7 {[%emt 0:02:47]} 8. O-O {[%emt 0:02:12]} c5 {[%emt 0:02:32]} 9. Nb3 {[%emt 0:07:40]} Be4 {[%emt 0:06:19]} 10. Qd1 {[%emt 0:00:30]} cxd4 {[%emt 0:03:34]} 11. a3 {[%emt 0:02:10]} Be7 {[%emt 0:02:59]} 12. Nfxd4 {[%emt 0:05:17]} Bxg2 {[%emt 0:03:32]} 13. Kxg2 {[%emt 0:00:25]} d5 {[%emt 0:01:01]} 14. cxd5 {[%emt 0:04:52]} Qxd5+ {[%emt 0:00:59]} 15. Nf3 {[%emt 0:00:39]} Na6 {[%emt 0:03:15]} 16. Qxd5 {[%emt 0:01:52]} Nxd5 {[%emt 0:00:29]} 17. Bd2 {[%emt 0:04:55]} Nf6 {[%emt 0:05:46]} 18. Rac1 {[%emt 0:03:36]} Ne4 {[%emt 0:09:16]} 19. Be3 {[%emt 0:01:16]} Rfc8 {[%emt 0:04:26]} 20. Rxc8+ {[%emt 0:06:14]} Rxc8 {[%emt 0:00:10]} 21. Rc1 {[%emt 0:00:22]} Rxc1 {[%emt 0:00:34]} 22. Bxc1 {[%emt 0:01:57]} Bf6 {[%emt 0:03:29]} 23. Nfd4 {[%emt 0:04:14]} Nac5 {[%emt 0:06:08]} 24. f3 {[%emt 0:04:10]} Nxb3 {[%emt 0:01:20]} 25. Nxb3 {[%emt 0:00:11]} Nd6 {[%emt 0:00:38]} 26. Nd2 {[%emt 0:02:24]} b5 {[%emt 0:01:51]} 27. b3 {[%emt 0:02:06]} Kf8 {[%emt 0:01:10]} 28. e4 {[%emt 0:07:49]} Ke8 {[%emt 0:05:14]} 29. Kf1 {[%emt 0:01:35]} Kd7 {[%emt 0:01:42]} 30. Ke2 {[%emt 0:01:08]} h5 {[%emt 0:05:06]} 31. Kd3 {[%emt 0:05:40]} g6 {[%emt 0:01:51]} 32. f4 {[%emt 0:02:25]} Bd8 {[%emt 0:02:11]} 33. Nf3 {[%emt 0:01:06]} a6 {[%emt 0:05:18]} 34. Ne5+ {[%emt 0:03:52]} Kc7 {[%emt 0:00:33]} 35. Bd2 {[%emt 0:04:03]} Bf6 {[%emt 0:02:17]} 36. Ba5+ {[%emt 0:00:33]} Kc8 {[%emt 0:03:32]} 37. Nf3 {[%emt 0:01:00]} Bb2 {[%emt 0:00:56]} 38. Bb4 {[%emt 0:02:30]} Kd7 {[%emt 0:01:41]} 39. Kc2 {[%emt 0:03:59]} Ba1 {[%emt 0:02:05]} 40. Bxd6 {[%emt 0:00:00]} Kxd6 {[%emt 0:00:00]} 41. e5+ {[%emt 0:08:28]} Kd5 {[%emt 0:06:59]} 42. Kd3 {[%emt 0:01:50]} f6 {[%emt 0:02:26]} 43. exf6 {[%emt 0:02:14]} Bxf6 {[%emt 0:00:07]} 44. Nd2 {[%emt 0:03:46]} e5 {[%emt 0:03:05]} 45. Ne4 {[%emt 0:07:25]} Be7 {[%emt 0:01:21]} 46. a4 {[%emt 0:05:09]} bxa4 {[%emt 0:03:14]} 47. bxa4 {[%emt 0:00:10]} exf4 {[%emt 0:00:36]} 48. gxf4 {[%emt 0:00:17]} Bd8 {[%emt 0:01:53]} 49. Ng3 {[%emt 0:02:45]} Bc7 {[%emt 0:01:26]} 50. Ne2 {[%emt 0:00:40]} Bb8 {[%emt 0:03:14]} 51. h3 {[%emt 0:01:07]} Bc7 {[%emt 0:00:27]} 52. Nc3+ {[%emt 0:01:54]} Kc5 {[%emt 0:05:37]} 53. Ke4 {[%emt 0:00:51]} Kc4 {[%emt 0:00:49]} 54. Nd5 {[%emt 0:00:17]} Bd8 {[%emt 0:01:02]} 55. Ke5 {[%emt 0:02:28]} a5 {[%emt 0:01:40]} 56. f5 {[%emt 0:01:00]} gxf5 {[%emt 0:00:29]} 57. Ne3+ {[%emt 0:00:06]} Kb4 {[%emt 0:00:27]} 58. Kxf5 {[%emt 0:00:54]} Kxa4 {[%emt 0:00:14]} 59. Nc4 {[%emt 0:00:21]} Kb4 {[%emt 0:01:15]} 60. Nxa5 {[%emt 0:00:08]} Kxa5 {[%emt 0:00:05]} 61. h4 {[%emt 0:00:26]} Bxh4 {[%emt 0:00:11]} 62. Kg6 {[%emt 0:00:12]} Be1 {[%emt 0:00:24]} 63. Kxh5 {[%emt 0:00:06]} 1/2-1/2

[Event "World Senior chT-65 2019"]
[Site "Rhodes"]
[Date "2019.04.22"]
[Round "7.38"]
[White "White, Alastair F"]
[Black "Thornton, John D"]
[Result "1/2-1/2"]
[ECO "C00"]
[WhiteElo "2108"]
[BlackElo "2061"]
[Annotator "NA"]
[PlyCount "48"]
[EventDate "2019.04.16"]
[EventType "team-tourn"]
[EventCountry "GRE"]
[SourceTitle "playchess.com"]
[Source "ChessBase"]
[SourceQuality "1"]
[WhiteTeam "Scotland"]
[BlackTeam "Wales"]
[WhiteTeamCountry "SCO"]
[BlackTeamCountry "WLS"]
[TimeControl "40/5400+30:1800+30"]

1. e4 {[%emt 0:00:00]} e6 {[%emt 0:00:00]} 2. b3 {[%emt 0:00:06]} d5 {[%emt 0:00:00]} 3. Bb2 {[%emt 0:00:14]} dxe4 {[%emt 0:00:13]} 4. Nc3 {[%emt 0:00:12]} Nf6 {[%emt 0:00:22]} 5. Qe2 {[%emt 0:00:09]} Nc6 {[%emt 0:00:44]} 6. Nxe4 {[%emt 0:00:15]} Be7 {[%emt 0:00:57]} 7. Nf3 {[%emt 0:01:09]} O-O {[%emt 0:02:14]} 8. d4 {[%emt 0:02:31]} Qd5 {[%emt 0:07:28]} 9. Nxf6+ {[%emt 0:10:16]} Bxf6 {[%emt 0:00:19]} 10. Qd2 {[%emt 0:06:39]} a5 {[%emt 0:05:46]} 11. Bc4 {[%emt 0:05:49]} Qh5 {[%emt 0:10:12]} 12. Be2 {[%emt 0:06:30]} Qd5 {[%emt 0:02:35]} 13. O-O {[%emt 0:09:03]} e5 {[%emt 0:05:09]} 14. Bc4 {[%emt 0:11:44]} Qd6 {[%emt 0:00:33]} 15. d5 {[%emt 0:00:33]} e4 {[%emt 0:07:48]} 16. Bxf6 {[%emt 0:10:46]} Qxf6 {[%emt 0:08:10]} 17. Ng5 {[%emt 0:01:05]} Ne5 {[%emt 0:02:21]} 18. Nxe4 {[%emt 0:00:26]} Qg6 {[%emt 0:01:21]} 19. Qe2 {[%emt 0:07:10]} Bf5 {[%emt 0:09:50]} 20. f3 {[%emt 0:05:42]} Nxf3+ {[%emt 0:03:53]} 21. Rxf3 {[%emt 0:02:46]} Bxe4 {[%emt 0:00:17]} 22. Rg3 {[%emt 0:01:06]} Qb6+ {[%emt 0:00:49]} 23. Qe3 {[%emt 0:01:57]} Qxe3+ {[%emt 0:02:21]} 24. Rxe3 {[%emt 0:00:04]} Bxc2 {[%emt 0:02:26]} 1/2-1/2